[Event "Israel-ch Youth U8-18 2024"]
[Site "Kfar Saba"]
[Date "2024.04.19"]
[Round "6.15"]
[White "Ben Aharon, Eitan"]
[Black "Cohen, Israel"]
[Result "0-1"]
[ECO "C12"]
[WhiteElo "1471"]
[BlackElo "1763"]
[Annotator "NA RC COMBH"]
[PlyCount "56"]
[EventDate "2024.04.10"]
[EventType "swiss"]
[EventCountry "ISR"]
[SourceTitle "playchess.com"]
[Source "ChessBase"]
[SourceQuality "1"]
[TimeControl "5400+30"]

1. e4 {[%emt 0:00:10]} e6 {[%emt 0:00:08]} 2. d4 {[%emt 0:00:05]} d5 {[%emt 0:00:09]} 3. Nc3 {[%emt 0:00:07]} Nf6 {[%emt 0:00:04]} 4. Bg5 {[%emt 0:02:34]} Bb4 {[%emt 0:00:25]} 5. e5 {[%emt 0:01:31]} h6 {[%emt 0:00:12]} 6. exf6 {[%emt 0:01:40]} hxg5 {[%emt 0:00:21]} 7. fxg7 {[%emt 0:00:47]} Rg8 {[%emt 0:00:21]} 8. Bd3 {[%emt 0:05:03]} Qf6 {[%emt 0:01:56]} 9. Nge2 {[%emt 0:04:06]} Qxg7 {[%emt 0:05:34]} 10. Qd2 {[%emt 0:01:40]} Bd7 {[%emt 0:03:58]} 11. a3 {[%emt 0:01:36]} Bd6 {[%emt 0:03:25]} 12. Nb5 {[%emt 0:03:32]} Bxb5 {[%emt 0:02:13]} 13. Bxb5+ {[%emt 0:00:16]} c6 {[%emt 0:00:12]} 14. Bd3 {[%emt 0:00:10]} Nd7 {[%emt 0:02:43]} 15. c3 {[%emt 0:05:35]} Nf8 {[%emt 0:03:48]} 16. b4 {[%emt 0:06:45]} Qf6 {[%emt 0:12:24]} 17. g3 {[%emt 0:06:57]} Qf3 {[%emt 0:04:43]} 18. O-O-O {[%emt 0:07:36]} a5 {[%emt 0:00:55]} 19. Kb2 {[%emt 0:03:25]} Nd7 {[%emt 0:01:56]} 20. Qc2 {[%emt 0:02:35]} b5 {[%emt 0:07:59]} 21. Nc1 {[%emt 0:05:53]} Nb6 {[%emt 0:08:37]} 22. Nb3 {[%emt 0:08:33]} axb4 {[%emt 0:01:03]} 23. cxb4 {[%emt 0:01:50]} Nc4+ {[%emt 0:38:54]} 24. Bxc4 {[%emt 0:03:40]} bxc4 {[%emt 0:00:00]} 25. Na5 {[%emt 0:00:19]} Kd7 {[%emt 0:00:00]} 26. Rhe1 {[%emt 0:01:18]} Rgb8 {[%emt 0:00:00]} 27. Re3 {[%emt 0:01:24]} Qf6 {[%emt 0:00:00]} 28. Qa4 {[%emt 0:02:30]} Qxf2+ {[%emt 0:00:00]} 0-1

[Event "Israel-ch Youth U8-18 2024"]
[Site "Kfar Saba"]
[Date "2024.04.21"]
[Round "7.1"]
[White "Levin, Guy"]
[Black "Rozen, Eytan"]
[Result "1/2-1/2"]
[ECO "A30"]
[WhiteElo "2451"]
[BlackElo "2499"]
[Annotator "TA"]
[PlyCount "109"]
[EventDate "2024.04.10"]
[EventType "swiss"]
[EventCountry "ISR"]
[SourceTitle "playchess.com"]
[Source "ChessBase"]
[SourceQuality "1"]
[TimeControl "5400+30"]

{[%evp 23,109,-54,0,-42,-46,-56,-62,-55,-54,-56,-56,-63,-59,-62,-44,-45,-43,-50,-45,-39,-36,-55,-46,-56,-47,-59,-50,-51,-53,-55,-40,-42,-34,-40,-40,-55,-55,-58,-51,-101,-101,-101,-86,-100,-100,-93,-93,-102,-103,-104,-108,-102,-102,-102,-104,-110,0,-66,-66,-66,-66,-66,-66,-154,-154,-154,-81,-110,-154,-154,-154,-199,-199,-305,-305,-305,0,0,0,0,0,0,0,0,0,0,0,0]} 1. Nf3 {[%emt 0:00:25]} c5 {[%emt 0:00:36]} 2. e3 {[%emt 0:00:08]} Nf6 {[%emt 0:00:58]} 3. c4 {[%emt 0:01:57]} g6 {[%emt 0:01:03]} 4. b3 {[%emt 0:01:16]} Bg7 {[%emt 0:03:35]} 5. Bb2 {[%emt 0:00:10]} O-O {[%emt 0:00:11]} 6. Nc3 {[%emt 0:01:42]} Nc6 {[%emt 0:00:48]} 7. Be2 {[%emt 0:01:31]} e5 {[%emt 0:02:03]} 8. O-O {[%emt 0:16:49] A30: Symmetrical English: Double Fianchetto and Hedgehog.} d5 {[%emt 0:01:33]} 9. cxd5 {[%emt 0:00:24]} Nxd5 {[%emt 0:00:02]} 10. Rc1 {[%emt 0:03:46]} b6 {[%emt 0:05:46]} 11. Nxd5 $146 {[%emt 0:10:38]} ({Predecessor:} 11. a3 Bb7 12. Qc2 Rc8 13. Qb1 Re8 14. Rfd1 Nxc3 15. Bxc3 e4 16. Ne1 Qe7 17. Bxg7 Kxg7 {1-0 Krejci,J (2578)-Vyskocil,N (2304) Pardubice Czech op-A 30th 2019 (4)}) 11... Qxd5 {[%emt 0:00:02]} 12. d4 {[%emt 0:06:09]} cxd4 {[%emt 0:02:53]} (12... exd4 $15 13. Nxd4 Nxd4 (13... cxd4 14. Bf3 $14) 14. exd4 Rb8 (14... Bxd4 $2 15. Bf3 $18)) 13. Nxd4 {[%emt 0:02:27]} Nxd4 {[%emt 0:00:15]} ({Much worse is} 13... exd4 $6 14. Bf3 Qg5 15. exd4 $14 (15. Rxc6 Ba6 $11) (15. Bxc6 Rb8 $14)) 14. Bxd4 {[%emt 0:08:09]} exd4 {[%emt 0:00:36]} 15. Bf3 {[%emt 0:00:01]} Qa5 {[%emt 0:05:21]} 16. Bxa8 {[%emt 0:00:05]} Ba6 $1 {[%emt 0:00:13]} 17. Qf3 {[%emt 0:03:47]} (17. b4 $2 Qxb4 18. Bd5 Bxf1 19. Qxf1 dxe3 20. fxe3 Qe7 $17) 17... Bxf1 {[%emt 0:01:17]} 18. Rxf1 {[%emt 0:07:53]} Qxa2 {[%emt 0:01:23]} 19. exd4 $1 {[%emt 0:00:19]} Bxd4 {[%emt 0:00:09]} 20. Bd5 {[%emt 0:00:07]} Qb2 {[%emt 0:06:37]} 21. g3 {[%emt 0:01:52]} Kg7 {[%emt 0:02:52]} 22. Re1 {[%emt 0:00:44]} Bc5 {[%emt 0:02:04]} 23. Bc4 {[%emt 0:00:46]} Qf6 {[%emt 0:03:33]} 24. Qxf6+ {[%emt 0:01:20]} Kxf6 {[%emt 0:00:02]} 25. Rd1 {[%emt 0:00:21]} Ke7 {[%emt 0:00:19]} 26. Bb5 {[%emt 0:03:48]} Bd6 {[%emt 0:05:25]} 27. Re1+ {[%emt 0:01:55]} Kd8 {[%emt 0:01:28]} 28. Ra1 {[%emt 0:02:29]} a5 {[%emt 0:00:08]} 29. Rd1 {[%emt 0:01:46]} Ke7 {[%emt 0:00:30]} 30. Re1+ {[%emt 0:01:04]} Kf6 {[%emt 0:00:14]} 31. Re8 {[%emt 0:00:56]} (31. Rd1 $15 Rd8 32. h4) 31... Rxe8 $17 {[%emt 0:00:34]} 32. Bxe8 {[%emt 0:00:02]} Bc5 {[%emt 0:03:22]} 33. Kf1 {[%emt 0:02:44]} Ke6 {[%emt 0:01:22]} 34. Ke2 {[%emt 0:01:35]} f6 {[%emt 0:00:12]} 35. h4 {[%emt 0:05:47]} Ke5 {[%emt 0:05:56]} 36. h5 {[%emt 0:00:48]} gxh5 {[%emt 0:00:08]} 37. Bxh5 {[%emt 0:01:06]} Kd4 {[%emt 0:00:08]} 38. g4 {[%emt 0:03:52]} Kc3 {[%emt 0:01:06]} 39. Bf7 {[%emt 0:00:03]} Kd4 {[%emt 0:06:10]} ({Black should play} 39... b5 $17 40. Bg8 h6) 40. Be8 {[%emt 0:00:32]} ({White should try} 40. Bh5 $1 $11) 40... Bb4 {[%emt 0:01:21]} 41. f3 {[%emt 0:01:22]} Kc3 {[%emt 0:07:25]} 42. Bf7 $1 {[%emt 0:00:04]} Bc5 {[%emt 0:00:12]} 43. f4 {[%emt 0:01:12] [#]} (43. Bd5 $15) 43... h6 $1 $17 {[%emt 0:01:02]} 44. Kf3 {[%emt 0:00:36]} Kd3 {[%emt 0:00:11]} (44... b5 $142 45. Ke4 Ba3) 45. Bg6+ {[%emt 0:01:06]} Kd4 {[%emt 0:00:27]} 46. Be8 {[%emt 0:00:24]} Ba3 {[%emt 0:01:35]} 47. Bd7 {[%emt 0:00:23]} Bf8 {[%emt 0:00:53]} 48. Be8 {[%emt 0:00:16]} (48. Be6 $142) 48... Kc3 $19 {[%emt 0:05:42]} 49. Bf7 {[%emt 0:00:02] [#]} h5 $2 {[%emt 0:01:04]} ({Better is} 49... b5 $1 $19 {[%mdl 512] aiming for ...Bc5.} 50. Ke3 (50. Ke4 Ba3) 50... Ba3) 50. gxh5 $11 {[%emt 0:04:46]} f5 {[%emt 0:00:09]} 51. Be6 {[%emt 0:00:38]} b5 {[%emt 0:00:06]} 52. Kg3 {[%emt 0:01:27]} Bh6 {[%emt 0:00:48]} 53. Kf3 {[%emt 0:00:09]} Bg7 {[%emt 0:00:29]} 54. Kg3 {[%emt 0:00:14]} Bh6 {[%emt 0:01:03]} 55. Kf3 {[%emt 0:00:44]} 1/2-1/2

[Event "Israel-ch Youth U8-18 2024"]
[Site "Kfar Saba"]
[Date "2024.04.21"]
[Round "7.2"]
[White "Michaeli, Omri"]
[Black "Sokolovsky, Yahli"]
[Result "1-0"]
[ECO "E90"]
[WhiteElo "2031"]
[BlackElo "2490"]
[Annotator "TA"]
[PlyCount "79"]
[EventDate "2024.04.10"]
[EventType "swiss"]
[EventCountry "ISR"]
[SourceTitle "playchess.com"]
[Source "ChessBase"]
[SourceQuality "1"]
[TimeControl "5400+30"]

{[%evp 12,79,47,42,64,40,35,38,43,38,50,29,32,43,56,54,75,72,80,69,76,16,86,79,120,85,91,45,112,68,66,70,65,55,229,133,136,117,103,103,108,113,201,189,450,454,453,446,559,540,561,560,657,679,760,764,777,747,933,860,1688,1747,1219,823,29974,29975,29969,5189,5202,580]} 1. d4 {[%emt 0:00:03]} Nf6 {[%emt 0:00:23]} 2. c4 {[%emt 0:00:07]} g6 {[%emt 0:02:39]} 3. Nc3 {[%emt 0:00:17]} Bg7 {[%emt 0:00:04]} 4. e4 {[%emt 0:00:06]} d6 {[%emt 0:00:02]} 5. Nf3 {[%emt 0:00:15]} Bg4 {[%emt 0:08:10]} 6. Be2 {[%emt 0:03:21]} Bxf3 {[%emt 0:00:06]} 7. Bxf3 {[%emt 0:01:37] Black must now prevent e5.} e5 {[%emt 0:00:12]} 8. dxe5 {[%emt 0:05:41]} dxe5 {[%emt 0:00:08]} 9. Qxd8+ {[%emt 0:00:07]} Kxd8 {[%emt 0:00:05] White is slightly better.} 10. Be3 {[%emt 0:05:29]} c6 {[%emt 0:00:48]} 11. O-O-O+ {[%emt 0:01:56]} Nbd7 {[%emt 0:04:11]} 12. g4 {[%emt 0:03:30][%cal Bg2g4,Bg4g5][%mdl 32]} h6 {[%emt 0:13:38][%cal Bh7h6,Bh6h5][%mdl 32]} 13. h4 {[%emt 0:01:12]} Nh7 {[%emt 0:01:13]} 14. g5 {[%emt 0:03:15] White is much more active. Black is weak on the light squares} h5 {[%emt 0:02:33] Inhibits Bg4.} 15. Bg2 {[%emt 0:05:47] Threatens to win with Bh3.} Ke7 $1 {[%emt 0:00:26]} 16. c5 {[%emt 0:09:10]} (16. Bh3 $16 Rhd8 17. Na4) 16... Rhd8 {[%emt 0:06:27]} (16... Nhf8 $11) 17. Bh3 $16 {[%emt 0:00:21]} Ke8 {[%emt 0:14:57]} 18. a3 {[%emt 0:06:57]} Ndf8 {[%emt 0:08:22]} 19. b4 {[%emt 0:04:54]} (19. Rd6 $16) 19... Rxd1+ {[%emt 0:03:25]} (19... Ke7 $14) 20. Nxd1 {[%emt 0:07:40]} Ke7 {[%emt 0:07:42]} 21. Nb2 {[%emt 0:00:50]} Ne6 {[%emt 0:07:27]} 22. Nc4 {[%emt 0:09:14]} Rc8 $2 {[%emt 0:02:34] [#]} (22... f6 $14) 23. Rd1 {[%emt 0:05:22]} (23. f4 $1 $18 {[%cal Rf4f5] f5 would now be deadly.} Rd8 24. f5 (24. fxe5 Nhf8 $16) (24. Nxe5 Bxe5 25. fxe5 Rd3 $17)) 23... Rc7 {[%emt 0:01:33]} 24. Rd6 $36 {[%emt 0:01:39][%mdl 2048] Black is under strong pressure.} Nhf8 {[%emt 0:00:47]} 25. Kc2 {[%emt 0:01:18]} f6 {[%emt 0:00:24]} 26. Kd3 {[%emt 0:03:53]} (26. a4 {simplifies} Rd7 27. Rxd7+ Nxd7 28. Na5) 26... fxg5 {[%emt 0:00:53]} (26... Rd7 $16) 27. Bxg5+ $18 {[%emt 0:05:24]} ({Resist} 27. hxg5 $6 Rd7 $16) 27... Bf6 $2 {[%emt 0:04:33]} (27... Nxg5 28. hxg5 Kf7) 28. Bxe6 {[%emt 0:01:33]} (28. Nxe5 $2 {is the wrong capture.} Nxg5 29. Nxg6+ Nxg6 $19) 28... Nxe6 {[%emt 0:03:24]} 29. Nxe5 {[%emt 0:00:59]} Nxg5 {[%emt 0:04:33]} 30. Nxg6+ {[%emt 0:00:35]} Kf7 {[%emt 0:00:00]} 31. hxg5 {[%emt 0:01:00]} Bxg5 {[%emt 0:00:10][%mdl 4096] Endgame. KRB-KRN} 32. f4 {[%emt 0:01:24]} Bh6 {[%emt 0:00:24]} 33. e5 {[%emt 0:01:54]} b6 {[%emt 0:00:47]} 34. Ke4 {[%emt 0:01:12]} bxc5 {[%emt 0:01:15]} 35. bxc5 {[%emt 0:00:13]} Kg7 {[%emt 0:00:11]} 36. Nh4 {[%emt 0:03:23] White threatens Nf5+ and mate.} Kh7 {[%emt 0:00:01]} 37. Nf5 {[%emt 0:00:38]} Bf8 {[%emt 0:00:09] [#]} 38. e6 $1 {[%emt 0:00:06]} Rc8 {[%emt 0:01:47]} 39. e7 {[%emt 0:01:49]} Bxe7 {[%emt 0:00:43]} 40. Rh6+ {[%emt 0:00:08] Weighted Error Value: White=0.19 (very precise) /Black=0.61.  Loses game:     	---       	Black=1      Mistake:       	White=3     	Black=4      Inaccurate:     	White=1     	Black=1      OK:         	White=9     	Black=4      Best:        	White=3     	Black=1      Strong:       	---       	Black=1} 1-0

[Event "Israel-ch Youth U8-18 2024"]
[Site "Kfar Saba"]
[Date "2024.04.21"]
[Round "7.3"]
[White "Aizenberg, Benny"]
[Black "Pelech, Roee"]
[Result "0-1"]
[ECO "C45"]
[WhiteElo "2409"]
[BlackElo "2215"]
[Annotator "TA"]
[PlyCount "142"]
[EventDate "2024.04.10"]
[EventType "swiss"]
[EventCountry "ISR"]
[SourceTitle "playchess.com"]
[Source "ChessBase"]
[SourceQuality "1"]
[TimeControl "5400+30"]

{[%evp 9,142,13,36,19,16,0,18,12,14,26,36,25,43,12,18,0,8,-7,-11,-25,-34,-37,-29,-243,-236,-224,-229,-235,-198,-202,-168,-150,-169,-197,-202,-191,-202,-206,-210,-216,-208,-200,-212,-201,-207,-208,-208,-210,-204,-202,-196,-196,-183,-229,-234,-270,-272,-268,-262,-260,-260,-312,-305,-344,-367,-386,-393,-454,-487,-478,-469,-462,-429,-517,-516,-525,-525,-551,-522,-1025,-1014,-29973,-29971,-29983,-29984,-29984,-29985,-29987,-29987,-29987,-29988,-29988,-29976,-29976,-29977,-29977,-29977,-29977,-29977,-29977,-29978,-29978,-29979,-29980,-29979,-29979,-29980,-29980,-29979,-29979,-29979,-29981,-29982,-29982,-29983,-29983,-29984,-29984,-29985,-29985,-29982,-29985,-29983,-29983,-29984,-29985,-29986,-29986,-29986,-29986,-29986,-29986,-29986,-29989,-29985]} 1. e4 {[%emt 0:00:03]} e5 {[%emt 0:00:55]} 2. Nf3 {[%emt 0:00:10]} Nc6 {[%emt 0:00:01]} 3. d4 {[%emt 0:00:06]} exd4 {[%emt 0:00:35]} 4. Nxd4 {[%emt 0:00:05]} Qf6 {[%emt 0:00:43]} 5. Nf3 {[%emt 0:00:33]} h6 {[%emt 0:00:09]} 6. Bc4 {[%emt 0:02:30] C45: Scotch Game.} Bb4+ {[%emt 0:01:02]} 7. c3 {[%emt 0:00:10]} Bc5 {[%emt 0:00:03]} 8. O-O {[%emt 0:01:01][%cal Oe4e5] With the idea e5!} Nge7 {[%emt 0:02:12]} 9. b4 $146 {[%emt 0:04:32]} ({Predecessor:} 9. a4 a5 10. Na3 Bxa3 11. Rxa3 O-O 12. Re1 d6 13. h3 Ng6 14. Bf1 Be6 15. Nd4 {1-0 Krysa,L (2541)-Nurgaliyeva,Z (1895) Titled Tuesday intern op 11th Apr Early blitz 2023 (6)}) 9... Bd6 {[%emt 0:09:17]} 10. Qc2 {[%emt 0:10:58]} Ng6 {[%emt 0:01:44]} 11. Be3 {[%emt 0:00:45]} O-O {[%emt 0:09:25]} 12. b5 {[%emt 0:07:20]} Nce5 {[%emt 0:00:59]} 13. Nxe5 {[%emt 0:00:06]} Bxe5 {[%emt 0:09:31]} 14. g3 {[%emt 0:00:21]} d5 $1 {[%emt 0:00:36]} 15. exd5 {[%emt 0:17:25]} (15. Bxd5 Bh3 16. f4 Bxf1 17. Kxf1 Rfd8 $17) 15... Bh3 {[%emt 0:01:03]} 16. Nd2 $2 {[%emt 0:01:19] Repels Qf3} (16. f4 $1 $11 Bxf1 17. Bxf1) 16... Bxc3 $19 {[%emt 0:03:05]} 17. Rae1 {[%emt 0:03:05]} (17. Ne4 {leads to mate.} Qf3 (17... Bxa1 $2 {too greedy.} 18. Nxf6+ Bxf6 19. d6 $18) (17... Bxa1 $2 {is the wrong capture.} 18. Nxf6+ Bxf6 19. d6 $18)) 17... Bxd2 {[%emt 0:14:02]} 18. Bxd2 {[%emt 0:00:08]} Qf3 {[%emt 0:01:41][%csl Gh3][%cal Rf3g2]} 19. Qe4 {[%emt 0:00:07]} Qxe4 {[%emt 0:02:08]} 20. Rxe4 {[%emt 0:00:05]} Bxf1 {[%emt 0:00:04]} 21. Bxf1 {[%emt 0:01:14]} Rfd8 {[%emt 0:05:45]} 22. Rd4 {[%emt 0:00:21]} Ne7 {[%emt 0:02:16]} 23. Bg2 {[%emt 0:05:53] [#]} Nxd5 $1 {[%emt 0:01:50][%mdl 512]} 24. Bxd5 {[%emt 0:06:51] [#] aiming for Be3.} c6 $1 {[%emt 0:00:09][%mdl 512]} 25. bxc6 {[%emt 0:00:03]} bxc6 {[%emt 0:00:02]} 26. Bxf7+ {[%emt 0:00:09]} Kxf7 {[%emt 0:00:03]} 27. Rf4+ {[%emt 0:00:07]} Kg8 {[%emt 0:00:31]} 28. Be3 {[%emt 0:00:18]} a5 {[%emt 0:02:03]} 29. Rc4 {[%emt 0:00:57]} Ra6 {[%emt 0:04:26]} 30. Kg2 {[%emt 0:01:57]} a4 {[%emt 0:02:41]} 31. a3 {[%emt 0:00:10]} (31. Kf3 {keeps fighting.}) 31... Rd3 $19 {[%emt 0:00:13]} 32. Bc5 {[%emt 0:00:06]} Kf7 {[%emt 0:01:04]} 33. h4 {[%emt 0:00:23]} h5 {[%emt 0:01:33]} 34. Bb4 {[%emt 0:00:44]} Ke6 {[%emt 0:03:11]} 35. g4 {[%emt 0:02:59]} g6 {[%emt 0:02:15]} 36. f3 {[%emt 0:01:49]} Rb3 {[%emt 0:05:07] ...Kd5 is the strong threat.} 37. gxh5 {[%emt 0:00:36]} gxh5 {[%emt 0:00:06]} 38. Kg3 {[%emt 0:00:27]} Kd5 {[%emt 0:02:52]} 39. Rf4 {[%emt 0:00:11]} Ra8 {[%emt 0:02:17]} 40. Rf5+ {[%emt 0:01:25]} Kd4 {[%emt 0:01:23]} 41. Be7 {[%emt 0:00:49]} Rb5 {[%emt 0:02:07]} 42. Rf4+ {[%emt 0:03:48]} Kd3 {[%emt 0:00:10]} 43. Rf6 {[%emt 0:00:17]} Re8 {[%emt 0:03:58]} 44. Rd6+ {[%emt 0:00:10]} Rd5 {[%emt 0:00:14]} 45. Rxd5+ {[%emt 0:00:59]} cxd5 {[%emt 0:00:01]} 46. Bb4 {[%emt 0:00:11]} Ke3 {[%emt 0:00:12]} 47. Bc5+ {[%emt 0:00:53]} d4 {[%emt 0:00:02]} 48. f4 {[%emt 0:00:09]} Rg8+ {[%emt 0:00:17]} 49. Kh2 {[%emt 0:00:46]} Ke4 {[%emt 0:01:28]} 50. f5 {[%emt 0:00:06]} Kxf5 {[%emt 0:00:31]} 51. Bxd4 {[%emt 0:00:05]} Ke4 {[%emt 0:00:06]} 52. Bc5 {[%emt 0:00:09]} Rg4 {[%emt 0:00:10]} 53. Kh3 {[%emt 0:00:06]} Kd5 {[%emt 0:00:07]} 54. Be7 {[%emt 0:01:23]} Kc4 {[%emt 0:00:08]} 55. Bf8 {[%emt 0:00:59]} Kb3 {[%emt 0:00:51]} 56. Be7 {[%emt 0:00:24]} Ka2 {[%emt 0:01:20]} 57. Bb4 {[%emt 0:00:10]} Kb2 {[%emt 0:00:38]} 58. Bd6 {[%emt 0:00:06]} Kc2 {[%emt 0:00:46]} 59. Be7 {[%emt 0:00:12]} Kb3 {[%emt 0:00:19]} 60. Bc5 {[%emt 0:00:32]} Rc4 {[%emt 0:00:13]} 61. Be7 {[%emt 0:00:12]} Rc3+ {[%emt 0:00:02]} 62. Kg2 {[%emt 0:00:06]} Ka2 {[%emt 0:00:07]} 63. Kf2 {[%emt 0:00:12]} Rxa3 {[%emt 0:00:10]} 64. Ke2 {[%emt 0:00:04]} Rc3 {[%emt 0:00:18]} 65. Kd1 {[%emt 0:00:09]} a3 {[%emt 0:00:31]} 66. Kd2 {[%emt 0:00:05]} Rc7 {[%emt 0:00:08]} 67. Bf6 {[%emt 0:00:06]} Kb1 {[%emt 0:00:21]} 68. Ke3 {[%emt 0:00:04]} Rc4 {[%emt 0:00:16]} 69. Kd3 {[%emt 0:00:05]} Rg4 {[%emt 0:00:13]} 70. Kc3 {[%emt 0:00:24]} a2 {[%emt 0:00:06]} 71. Kb3 {[%emt 0:00:03]} Rg3+ {[%emt 0:00:09]} 0-1

[Event "Israel-ch Youth U8-18 2024"]
[Site "Kfar Saba"]
[Date "2024.04.21"]
[Round "7.4"]
[White "Medovoy, Yaniv"]
[Black "Menahem, Adi"]
[Result "1/2-1/2"]
[ECO "B30"]
[WhiteElo "2009"]
[BlackElo "2112"]
[Annotator "TA"]
[PlyCount "72"]
[EventDate "2024.04.10"]
[EventType "swiss"]
[EventCountry "ISR"]
[SourceTitle "playchess.com"]
[Source "ChessBase"]
[SourceQuality "1"]
[TimeControl "5400+30"]

{[%evp 9,72,34,31,27,31,10,22,-1,18,-4,8,3,5,-7,17,-7,-10,-9,8,-39,-46,-51,0,-58,-60,-65,-26,-36,-36,-250,-32,-33,-19,-15,0,-2,12,10,20,13,36,43,39,33,70,44,109,101,120,119,122,121,129,125,115,122,122,72,69,13,13,13,13,13,13]} 1. e4 {[%emt 0:00:02]} c5 {[%emt 0:00:13]} 2. Nc3 {[%emt 0:00:05]} Nc6 {[%emt 0:00:17]} 3. Nf3 {[%emt 0:00:05]} e5 {[%emt 0:02:30]} 4. Bc4 {[%emt 0:00:23]} g6 {[%emt 0:00:34]} 5. h4 {[%emt 0:01:35]} h6 {[%emt 0:01:21]} 6. d3 {[%emt 0:01:21]} Bg7 {[%emt 0:00:42]} 7. Be3 {[%emt 0:01:35]} d6 {[%emt 0:00:24]} 8. Qd2 {[%emt 0:00:27]} Nge7 {[%emt 0:02:07]} 9. Ng1 {[%emt 0:07:47]} Nd4 {[%emt 0:07:06]} 10. Nge2 {[%emt 0:04:35]} a6 {[%emt 0:09:52]} 11. a4 {[%emt 0:01:45]} Bg4 {[%emt 0:05:07]} 12. Bxd4 {[%emt 0:01:16]} cxd4 {[%emt 0:03:03]} 13. Nd5 {[%emt 0:00:08]} Be6 {[%emt 0:01:55]} 14. Ng3 {[%emt 0:10:06]} (14. Nxe7 $11 Qxe7 15. Bxe6 fxe6 16. h5) 14... h5 $15 {[%emt 0:07:19]} 15. Qb4 {[%emt 0:03:05]} Bxd5 {[%emt 0:10:57]} (15... O-O $15) 16. Bxd5 {[%emt 0:01:28]} (16. exd5 $11 f5 17. Qxb7) 16... Rb8 {[%emt 0:00:31]} 17. Bc4 {[%emt 0:08:08]} Bh6 {[%emt 0:06:35]} 18. Ne2 {[%emt 0:06:21]} O-O {[%emt 0:02:35]} 19. Qb3 $2 {[%emt 0:00:21] [#]} (19. Kf1 $15) 19... Nc6 $2 {[%emt 0:04:44]} ({Better is} 19... Qa5+ $1 $19 20. c3 b5 21. Bxf7+ Rxf7) 20. Bd5 {[%emt 0:09:06]} Qa5+ {[%emt 0:07:02]} 21. c3 {[%emt 0:02:26]} dxc3 {[%emt 0:01:20]} (21... Ne7 {simplifies} 22. O-O Nxd5 23. Qxd5 Qxd5 24. exd5 Rfc8) 22. bxc3 {[%emt 0:00:36]} Nd4 {[%emt 0:01:55]} 23. Nxd4 {[%emt 0:00:24]} (23. Qb2 {simplifies} Ne6 24. O-O Nc7 25. Bb3) 23... exd4 {[%emt 0:00:02]} 24. Qb4 {[%emt 0:00:07]} (24. Bxb7 $2 {is the wrong capture.} dxc3 25. O-O Qc7 $19) 24... Qxb4 {[%emt 0:00:43]} 25. cxb4 {[%emt 0:00:02]} Rfc8 {[%emt 0:01:30]} 26. O-O {[%emt 0:01:34]} Rc2 {[%emt 0:02:53]} 27. b5 {[%emt 0:00:38]} axb5 {[%emt 0:01:52]} ({Black should try} 27... Bd2 $14) 28. axb5 $16 {[%emt 0:00:03]} Rc3 {[%emt 0:01:08]} 29. Rfd1 {[%emt 0:00:39]} Rc5 {[%emt 0:04:50]} 30. b6 {[%emt 0:01:49]} Rb5 {[%emt 0:02:10]} 31. Rdb1 {[%emt 0:00:21]} Rxb1+ {[%emt 0:00:26]} 32. Rxb1 {[%emt 0:00:01]} Bd2 {[%emt 0:00:13]} 33. Ra1 {[%emt 0:00:24]} (33. Rb5 $142) 33... Bb4 {[%emt 0:00:22]} 34. Ra7 {[%emt 0:03:52] White is more active.} (34. f4 $14) 34... Bc5 $11 {[%emt 0:00:19] The position is equal.} 35. Rxb7 {[%emt 0:00:05]} Rxb7 {[%emt 0:00:03]} 36. Bxb7 {[%emt 0:00:07]} Bxb6 {[%emt 0:00:05] Weighted Error Value: White=0.31/Black=0.24 (precise) .  Loses game:     	White=1     	---        Missed win:     	---       	Black=1      Mistake:       	White=4     	Black=2      Inaccurate:     	White=1     	Black=2      OK:         	White=8     	Black=8      Best:        	White=1     	Black=4} 1/2-1/2